bitfinex/quotes_BTCUSD_20251015
["timestamp","ask_amount","ask_price","bid_price","bid_amount"]
[1760520454313,6.7842906,112880.0,112870.0,1e-08]
[1760520454535,6.79266291,112880.0,112870.0,1e-08]
[1760520454763,6.7842906,112880.0,112870.0,1e-08]
[1760520454954,6.80884386,112880.0,112870.0,1e-08]
[1760520455141,6.7983242,112880.0,112870.0,1e-08]
[1760520455369,6.79247502,112880.0,112870.0,1e-08]
[1760520455594,5.48689698,112880.0,112870.0,1e-08]
[1760520455738,6.83204822,112880.0,112870.0,1e-08]
[1760520455956,6.80021457,112880.0,112870.0,1e-08]
[1760520456148,6.82475878,112880.0,112870.0,1e-08]
[1760520456360,6.86822234,112880.0,112870.0,1e-08]
[1760520456557,6.88270663,112880.0,112870.0,1e-08]
[1760520457120,6.85094143,112880.0,112870.0,1e-08]
[1760520457920,6.85092598,112880.0,112870.0,1e-08]
[1760520459614,6.87759142,112880.0,112870.0,1e-08]
[1760520460322,6.90927265,112880.0,112870.0,1e-08]
[1760520460875,6.87759142,112880.0,112870.0,1e-08]
[1760520461304,2.09036265,112880.0,112870.0,1e-08]
[1760520461507,6.90927265,112880.0,112870.0,1e-08]
[1760520461722,5.48782988,112880.0,112870.0,1e-08]
[1760520461922,6.76940082,112880.0,112870.0,1e-08]
[1760520463553,5.46382278,112880.0,112870.0,1e-08]
[1760520463760,6.76940082,112880.0,112870.0,1e-08]
[1760520465009,6.78329911,112880.0,112870.0,1e-08]
[1760520465433,5.98515409,112880.0,112870.0,1e-08]
[1760520465684,5.64515409,112880.0,112870.0,1e-08]
[1760520465850,5.9771949,112880.0,112870.0,1e-08]
[1760520466068,6.01579878,112880.0,112870.0,1e-08]
[1760520467258,6.04748001,112880.0,112870.0,1e-08]
[1760520468248,5.9771949,112880.0,112870.0,1e-08]
[1760520468447,6.00887613,112880.0,112870.0,1e-08]
[1760520468969,5.9771949,112880.0,112870.0,1e-08]
[1760520470414,6.00887613,112880.0,112870.0,1e-08]
[1760520471462,5.97723264,112880.0,112870.0,1e-08]
[1760520471666,5.63723264,112880.0,112870.0,1e-08]
[1760520471845,5.62334732,112880.0,112870.0,1e-08]
[1760520472049,5.5995649,112880.0,112870.0,0.24076425]
[1760520472239,5.9395649,112880.0,112870.0,0.24076425]
[1760520472436,5.96334732,112880.0,112870.0,0.24076425]
[1760520475577,5.99502855,112880.0,112870.0,0.24076425]
[1760520476319,5.99990557,112880.0,112870.0,0.24076425]
[1760520477273,5.97612315,112880.0,112870.0,0.24076425]
[1760520479754,6.00001314,112880.0,112870.0,0.24076425]
[1760520480079,5.97612315,112880.0,112870.0,0.24076425]
[1760520480680,5.97612315,112880.0,112830.0,0.25787034]
[1760520480681,0.17724211,112840.0,112830.0,0.0717521]
[1760520481041,0.19413418,112840.0,112830.0,0.0717521]
[1760520481243,0.19413418,112840.0,112830.0,0.17725782]
[1760520481600,0.5680149,112840.0,112830.0,0.17725782]
[1760520482165,0.5680149,112840.0,112830.0,0.17825782]
[1760520482463,0.5680149,112840.0,112830.0,0.002]
[1760520482663,1.28189562,112840.0,112830.0,0.002]
[1760520483886,0.53413418,112840.0,112830.0,0.002]
[1760520484099,0.9080149,112840.0,112830.0,0.002]
[1760520484802,0.9080149,112840.0,112830.0,0.17925782]
[1760520485237,1.28189562,112840.0,112830.0,0.002]
[1760520485992,0.9080149,112840.0,112830.0,0.17925782]
[1760520486200,0.91059544,112840.0,112830.0,0.17925782]
[1760520486880,0.19671472,112840.0,112830.0,0.17925782]
[1760520487080,0.57059653,112840.0,112830.0,0.17925782]
[1760520488947,0.57059653,112840.0,112830.0,0.002]
[1760520489338,0.19671581,112840.0,112830.0,0.17925782]
[1760520489516,0.57059653,112840.0,112830.0,0.17925782]
[1760520489723,0.57059653,112840.0,112830.0,0.002]
[1760520490923,0.19671581,112840.0,112830.0,0.002]
[1760520491224,0.57059653,112840.0,112830.0,0.002]
[1760520491352,0.58973189,112840.0,112830.0,0.17925782]
[1760520491795,0.58973189,112840.0,112830.0,0.002]
[1760520492378,0.21585117,112840.0,112830.0,0.17925782]
[1760520492698,0.19671581,112840.0,112830.0,0.17925782]
[1760520492872,0.57059653,112840.0,112830.0,0.002]
[1760520493087,0.58973189,112840.0,112830.0,0.002]
[1760520493980,0.58973189,112840.0,112830.0,0.17925782]
[1760520494918,0.58973189,112840.0,112830.0,0.002]
[1760520496072,0.96361261,112840.0,112830.0,0.002]
[1760520496600,0.94449702,112840.0,112830.0,0.002]
[1760520497245,6.49643846,112840.0,112830.0,0.002]
[1760520497443,6.52853746,112840.0,112830.0,0.002]
[1760520497566,5.44134706,112840.0,112830.0,0.002]
[1760520497772,6.21304916,112840.0,112830.0,0.002]
[1760520498017,6.18136793,112840.0,112830.0,0.001]
[1760520498168,0.95643241,112840.0,112830.0,0.001]
[1760520498519,0.58976702,112840.0,112830.0,0.001]
[1760520498696,0.5706163,112840.0,112830.0,0.001]
[1760520499067,0.17725782,112830.0,112820.0,0.17725881]
[1760520500526,0.17725782,112830.0,112820.0,0.17825881]
[1760520500963,0.17725782,112830.0,112820.0,0.001]
[1760520501169,0.55113854,112830.0,112820.0,0.01872735]
[1760520501385,0.55113854,112830.0,112820.0,0.19700088]
[1760520501578,0.55113854,112830.0,112820.0,0.17927353]
[1760520501796,0.89113854,112830.0,112820.0,0.002]
[1760520503287,0.51725782,112830.0,112820.0,0.002]
[1760520503527,0.89113854,112830.0,112820.0,0.002]
[1760520504476,0.89314471,112830.0,112820.0,0.002]
[1760520508029,0.91980764,112830.0,112820.0,0.002]
[1760520508234,0.91980764,112830.0,112820.0,0.052]
[1760520509638,0.54592692,112830.0,112820.0,0.052]
[1760520509841,0.93638096,112830.0,112820.0,0.052]
[1760520510467,0.56250024,112830.0,112820.0,0.052]
[1760520510645,0.35857949,112830.0,112820.0,0.24700088]
[1760520510845,0.35857949,112830.0,112820.0,0.22927353]
[1760520511021,0.53583731,112830.0,112820.0,0.22923353]
[1760520511628,0.53583731,112830.0,112820.0,0.05196]
[1760520511940,0.90971803,112830.0,112820.0,0.05196]
[1760520517047,0.90971803,112830.0,112820.0,0.22923353]
[1760520517394,0.01857949,112830.0,112820.0,0.22923353]
[1760520517544,0.19583731,112830.0,112820.0,0.22923353]
[1760520517750,0.19583731,112830.0,112820.0,0.22928092]
[1760520519344,0.17926399,112830.0,112820.0,0.22928092]
[1760520519565,0.00200617,112830.0,112820.0,0.22928092]
[1760520519768,0.17926399,112830.0,112820.0,0.22928092]
[1760520522153,0.55314471,112830.0,112820.0,0.22928092]
[1760520522888,0.35144668,112830.0,112820.0,0.22928092]
[1760520523097,0.5287045,112830.0,112820.0,0.22928092]
[1760520524435,0.17725782,112830.0,112820.0,0.22928092]
[1760520524643,0.55113854,112830.0,112820.0,0.22928092]
[1760520526146,0.17725782,112830.0,112820.0,0.22928092]
[1760520526346,0.55113854,112830.0,112820.0,0.22928092]
[1760520527547,0.17725782,112830.0,112820.0,0.22928092]
[1760520528925,0.56823134,112840.0,112820.0,0.22928092]
[1760520529073,0.90823134,112840.0,112830.0,0.17725782]
[1760520529492,0.90823134,112840.0,112820.0,0.22928092]
[1760520529913,0.90823134,112840.0,112820.0,0.22828092]
[1760520530382,0.35707343,112840.0,112830.0,0.17725782]
[1760520530601,0.34049891,112840.0,112830.0,0.17725782]
[1760520530811,0.51774102,112840.0,112830.0,0.17725782]
[1760520531229,0.34049891,112840.0,112830.0,0.17725782]
[1760520531437,0.51774102,112840.0,112830.0,0.17725782]
[1760520535005,0.51831548,112840.0,112830.0,0.17725782]
[1760520537503,0.00107337,112840.0,112830.0,0.17725782]
[1760520537714,0.00107337,112840.0,112830.0,0.66297362]
[1760520537936,0.00107337,112840.0,112830.0,0.28905782]
[1760520538155,0.00107337,112840.0,112830.0,0.17725782]
[1760520538375,0.00107337,112840.0,112830.0,0.28905782]
[1760520539032,0.17831548,112840.0,112820.0,0.05004739]
[1760520539284,0.17725782,112830.0,112820.0,0.05004739]
[1760520539522,0.17725782,112830.0,112820.0,0.22732092]
[1760520539751,0.17725782,112830.0,112820.0,0.05004739]
[1760520539941,0.17725782,112830.0,112820.0,0.22732092]
[1760520541498,0.17725782,112830.0,112820.0,0.22832092]
[1760520541877,0.17725782,112830.0,112820.0,0.22932092]
[1760520547784,0.55117362,112830.0,112820.0,0.05204739]
[1760520548506,0.89117362,112830.0,112820.0,0.05204739]
[1760520548894,6.08399942,112830.0,112820.0,0.05204739]
[1760520549133,5.72924509,112830.0,112820.0,0.05104739]
[1760520549342,5.71008362,112830.0,112820.0,0.05104739]
[1760520549545,5.7292358,112830.0,112820.0,0.05104739]
[1760520549768,5.7292358,112830.0,112820.0,0.05004739]
[1760520550316,5.71008362,112830.0,112820.0,0.05004739]
[1760520550921,5.72922891,112830.0,112820.0,0.05004739]
[1760520551396,5.71008362,112830.0,112820.0,0.05004739]
[1760520552639,5.72639368,112830.0,112820.0,0.05004739]
[1760520554505,0.35631006,112830.0,112820.0,0.22732092]
[1760520554715,0.01631006,112830.0,112820.0,0.22732092]
[1760520555077,0.00107337,112840.0,112830.0,0.17725782]
[1760520555617,0.55223144,112840.0,112820.0,0.05004739]
[1760520555817,0.89117362,112830.0,112820.0,0.05004739]
[1760520556386,0.51725782,112830.0,112820.0,0.05004739]
[1760520558129,0.51725782,112830.0,112820.0,0.22732092]
[1760520558511,0.51725782,112830.0,112820.0,0.05004739]
[1760520559605,0.34,112830.0,112820.0,0.22732092]
[1760520560016,0.51725782,112830.0,112820.0,0.22732092]
[1760520560378,0.34,112830.0,112820.0,0.22732092]
[1760520560588,0.51725782,112830.0,112820.0,0.22732092]
[1760520561411,0.34,112830.0,112820.0,0.22732092]
[1760520563974,0.53484503,112840.0,112830.0,0.17725782]
[1760520566237,0.00107337,112840.0,112830.0,0.17725782]
[1760520566447,0.00107337,112840.0,112830.0,0.55117362]
[1760520567300,0.00107337,112840.0,112830.0,0.17725782]
[1760520568030,0.00107337,112840.0,112830.0,0.17825782]
[1760520568231,0.00107337,112840.0,112830.0,0.29101782]
[1760520570387,0.00107337,112840.0,112830.0,0.17925782]
[1760520570558,0.00107337,112840.0,112830.0,0.29101782]
[1760520571143,0.00107337,112840.0,112830.0,0.17925782]
[1760520571352,0.00107337,112840.0,112830.0,0.66493362]
[1760520572556,0.00107337,112840.0,112830.0,0.55317362]
[1760520572752,0.00107337,112840.0,112830.0,0.66493362]
[1760520575432,0.00107337,112840.0,112830.0,0.29101782]
[1760520575580,0.00107337,112840.0,112830.0,0.66493362]
[1760520576223,0.00107337,112840.0,112830.0,0.55317362]
[1760520576421,0.00107337,112840.0,112830.0,0.66493362]
[1760520580146,0.00107337,112840.0,112830.0,0.29101782]
[1760520583846,0.00107337,112840.0,112830.0,0.17925782]
[1760520584097,0.00107337,112840.0,112830.0,0.29101782]
[1760520586002,0.00107337,112840.0,112830.0,0.66493362]
[1760520586981,0.00107337,112840.0,112830.0,0.55317362]
[1760520587197,0.00107337,112840.0,112830.0,0.66493362]
[1760520588675,0.00107337,112840.0,112830.0,0.29101782]
[1760520589525,0.00107337,112840.0,112830.0,0.66480943]
[1760520590377,0.55210709,112840.0,112830.0,0.17925782]
[1760520590569,0.17831548,112840.0,112830.0,0.29097782]
[1760520590702,0.00107337,112840.0,112830.0,0.29097782]
[1760520591332,0.00107337,112840.0,112830.0,0.66476943]
[1760520594251,0.17722662,112850.0,112840.0,0.17724211]
[1760520594478,0.17722662,112850.0,112840.0,0.17733057]
[1760520598414,0.20644007,112850.0,112840.0,0.17733057]
[1760520599997,0.20701446,112850.0,112840.0,0.17733057]
[1760520600366,0.58080607,112850.0,112840.0,0.17733057]
[1760520600961,0.20701446,112850.0,112840.0,0.17733057]
[1760520601164,0.20701424,112850.0,112840.0,0.17733057]
[1760520603514,0.20701424,112850.0,112840.0,8.846e-05]
[1760520603654,0.20701424,112850.0,112840.0,0.17733057]
[1760520608897,0.58080585,112850.0,112840.0,8.846e-05]
[1760520609098,0.8915924,112850.0,112840.0,8.846e-05]
[1760520609420,5.7105024,112850.0,112840.0,8.846e-05]
[1760520611050,6.08429401,112850.0,112840.0,8.846e-05]
[1760520611281,6.10345167,112850.0,112840.0,8.846e-05]
[1760520611454,6.10344659,112850.0,112840.0,8.846e-05]
[1760520611661,6.13010589,112850.0,112840.0,8.846e-05]
[1760520612703,6.14654263,112850.0,112840.0,8.846e-05]
[1760520613233,6.17665461,112850.0,112840.0,8.846e-05]
[1760520614261,6.16021787,112850.0,112840.0,8.846e-05]
[1760520614465,5.78642626,112850.0,112840.0,8.846e-05]
[1760520615143,5.76727368,112850.0,112840.0,8.846e-05]
[1760520615344,6.14106529,112850.0,112840.0,8.846e-05]
[1760520620027,6.11095331,112850.0,112840.0,8.846e-05]
[1760520620242,5.7371617,112850.0,112840.0,8.846e-05]
[1760520621311,6.11095331,112850.0,112840.0,8.846e-05]
[1760520625469,0.02723369,112850.0,112840.0,8.846e-05]
[1760520625688,0.00057439,112850.0,112840.0,0.17733057]
[1760520626561,0.17780079,112850.0,112840.0,0.17733057]
[1760520627107,0.00057439,112850.0,112840.0,0.17733057]
[1760520628607,0.00057439,112850.0,112840.0,0.55112218]
[1760520628867,0.00057439,112850.0,112840.0,0.92491379]
[1760520629072,0.00057439,112850.0,112840.0,0.66284218]
[1760520629289,0.00057439,112850.0,112840.0,0.55112218]
[1760520629499,0.00057439,112850.0,112840.0,0.66284218]
[1760520629972,0.00057439,112850.0,112840.0,0.66484218]
[1760520630569,0.00057439,112850.0,112840.0,0.29105057]
[1760520630760,0.00057439,112850.0,112840.0,0.66484218]
[1760520631140,0.00057439,112850.0,112840.0,0.55312218]
[1760520631416,0.00057439,112850.0,112840.0,0.66480218]
[1760520632414,0.00057439,112850.0,112840.0,0.55312218]
[1760520632547,0.00057439,112850.0,112840.0,0.66480218]
[1760520634734,0.00057439,112850.0,112840.0,0.55312218]
[1760520634939,0.00057439,112850.0,112840.0,0.66480218]
[1760520635610,0.00057439,112850.0,112840.0,0.55312218]
[1760520635803,0.00057439,112850.0,112840.0,0.66480218]
[1760520636434,0.00057439,112850.0,112840.0,1.03859379]
[1760520636643,0.00057439,112850.0,112840.0,0.92691379]
[1760520637039,0.00057439,112850.0,112840.0,1.03859379]
[1760520637244,0.00057439,112850.0,112840.0,0.92691379]
[1760520638007,0.00057439,112850.0,112840.0,1.03863508]
[1760520638733,0.00057439,112850.0,112840.0,0.92695508]
[1760520639270,0.00057439,112850.0,112840.0,1.03863508]
[1760520639468,0.00057439,112850.0,112840.0,0.92695508]
[1760520639649,0.00057439,112850.0,112840.0,1.03863508]
[1760520640070,0.00057439,112850.0,112840.0,1.07437333]
[1760520640257,0.00057439,112850.0,112840.0,0.92695508]
[1760520640663,0.00057439,112850.0,112840.0,1.03863508]
[1760520640880,0.00057439,112850.0,112840.0,0.92695508]
[1760520641039,0.00057439,112850.0,112840.0,0.94470508]
[1760520641241,0.00057439,112850.0,112840.0,1.03863508]
[1760520641460,0.00057439,112850.0,112840.0,0.92695508]
[1760520641698,0.00057439,112850.0,112840.0,0.29105186]
[1760520641900,0.00057439,112850.0,112840.0,0.92695508]
[1760520642102,0.00057439,112850.0,112840.0,0.17937186]
[1760520642309,0.00057439,112850.0,112840.0,0.00212975]
[1760520642545,0.25781466,112870.0,112850.0,0.1772264]
[1760520642749,0.25781466,112870.0,112860.0,0.1772107]
[1760520642750,0.96273871,112870.0,112860.0,0.1772107]
[1760520642947,0.89098661,112870.0,112860.0,0.1772107]
[1760520643349,0.71379161,112870.0,112860.0,0.1772107]
[1760520643549,0.34,112870.0,112860.0,0.1772107]
[1760520643718,0.71379161,112870.0,112860.0,0.1772107]
[1760520644455,0.34,112870.0,112860.0,0.1772107]
[1760520645239,0.58726527,112880.0,112860.0,0.1772107]
[1760520645240,0.5872607,112880.0,112870.0,0.177195]
[1760520645441,0.5171793,112880.0,112870.0,0.177195]
[1760520645865,0.34,112880.0,112870.0,0.177195]
[1760520646068,0.5171793,112880.0,112870.0,0.177195]
[1760520646295,0.89097091,112880.0,112870.0,0.177195]
[1760520647266,0.5171793,112880.0,112870.0,0.177195]
[1760520649136,0.34,112880.0,112870.0,0.177195]
[1760520649529,0.34172263,112880.0,112870.0,0.177195]
[1760520649782,0.51890193,112880.0,112870.0,0.177195]
[1760520650032,0.34172263,112880.0,112870.0,0.177195]
[1760520650804,0.34172263,112880.0,112870.0,0.55098661]
[1760520651214,0.00172263,112880.0,112870.0,0.55098661]
[1760520651423,0.00172263,112880.0,112870.0,0.288835]
[1760520651866,0.00172263,112880.0,112870.0,0.66233741]
[1760520652053,0.00222263,112880.0,112870.0,0.177195]
[1760520652253,0.00222263,112880.0,112870.0,0.66233741]
[1760520652831,0.00222263,112880.0,112870.0,0.288835]
[1760520652987,0.00222263,112880.0,112870.0,0.66233741]
[1760520653397,0.00222263,112880.0,112870.0,0.55069741]
[1760520653605,0.00222263,112880.0,112870.0,0.66333741]
[1760520653800,0.00222263,112880.0,112870.0,0.55169741]
[1760520654179,0.00222263,112880.0,112870.0,0.66333741]
[1760520654394,0.00222263,112880.0,112870.0,0.66433741]
[1760520654606,0.00222263,112880.0,112870.0,0.55269741]
[1760520654816,0.00222263,112880.0,112870.0,0.66433741]
[1760520655142,0.00222263,112880.0,112870.0,0.55269741]
[1760520655542,0.00222263,112880.0,112870.0,0.66433741]
[1760520655751,0.00222263,112880.0,112870.0,0.55269741]
[1760520655958,0.00222263,112880.0,112870.0,0.290835]
[1760520656160,0.00222263,112880.0,112870.0,0.66433741]
[1760520657437,0.00222263,112880.0,112870.0,0.179195]
[1760520658074,0.00222263,112880.0,112870.0,0.290835]
[1760520658503,0.00222263,112880.0,112870.0,0.179195]
[1760520658843,0.00222263,112880.0,112870.0,0.290835]
[1760520659301,0.00222263,112880.0,112870.0,0.179195]
[1760520659506,0.00222263,112880.0,112870.0,0.290835]
[1760520659899,0.00222263,112880.0,112870.0,0.179195]
[1760520660370,0.00222263,112880.0,112870.0,0.55269741]
[1760520660594,0.00222263,112880.0,112870.0,0.66433741]
[1760520661214,0.00222263,112880.0,112870.0,0.290835]
[1760520661644,0.17940193,112880.0,112870.0,0.290835]
[1760520661848,0.17940193,112880.0,112870.0,0.179195]
[1760520662003,0.89290434,112880.0,112870.0,0.002]
[1760520662424,5.71181434,112880.0,112870.0,0.002]
[1760520663290,0.51940193,112880.0,112870.0,0.177195]
[1760520664060,0.51940193,112880.0,112860.0,0.17721026]
[1760520664283,0.5176793,112880.0,112860.0,0.17721026]
[1760520664516,0.00114853,112870.0,112860.0,0.17721026]
[1760520665089,0.00114853,112870.0,112860.0,0.66231267]
[1760520665473,0.00114853,112870.0,112860.0,0.17721026]
[1760520665677,0.37465094,112870.0,112860.0,0.17721026]
[1760520665914,0.37465094,112870.0,112860.0,0.28881026]
[1760520666109,0.55184594,112870.0,112860.0,0.17721026]
[1760520666347,0.55184594,112870.0,112860.0,0.28881026]
[1760520666497,0.55184594,112870.0,112860.0,0.17721026]
[1760520666767,0.37465094,112870.0,112860.0,0.28981026]
[1760520667125,0.55184594,112870.0,112860.0,0.1782107]
[1760520667325,0.55184594,112870.0,112860.0,0.1792107]
[1760520667589,0.55184594,112870.0,112860.0,0.2908107]
[1760520668033,5.46043802,112870.0,112860.0,0.002]
[1760520668243,6.22151969,112870.0,112860.0,0.002]
[1760520668451,6.2379519,112870.0,112860.0,0.002]
[1760520668655,5.43613405,112870.0,112860.0,0.002]
[1760520668864,6.18313887,112870.0,112860.0,0.001]
[1760520669088,0.1772264,112850.0,112840.0,0.00012975]
[1760520669512,0.55072881,112850.0,112840.0,0.00012975]
[1760520670572,5.70963881,112850.0,112840.0,0.00012975]
[1760520670775,5.74515141,112850.0,112840.0,0.00012975]
[1760520671209,6.11865382,112850.0,112840.0,0.00012975]
[1760520671417,6.14697213,112850.0,112840.0,0.00012975]
[1760520672295,6.17910794,112850.0,112840.0,0.00012975]
[1760520672580,5.39996731,112850.0,112840.0,0.00012975]
[1760520672790,6.14697213,112850.0,112840.0,0.00012975]
[1760520673659,6.23765421,112850.0,112840.0,0.00012975]
[1760520674262,6.23865421,112850.0,112840.0,0.00012975]
[1760520675288,6.14897213,112850.0,112840.0,0.00012975]
[1760520678085,6.12065382,112850.0,112840.0,0.00012975]
[1760520678941,6.14731926,112850.0,112840.0,0.00012975]
[1760520685251,6.14731926,112850.0,112840.0,1e-08]
[1760520685453,6.57420326,112850.0,112840.0,1e-08]
[1760520685712,0.17725782,112830.0,112820.0,1e-08]
[1760520685917,6.47308419,112830.0,112820.0,1e-08]
[1760520686112,6.52064407,112830.0,112820.0,1e-08]
[1760520686336,6.54458259,112830.0,112820.0,1e-08]
[1760520686548,6.57125427,112830.0,112820.0,1e-08]
[1760520686746,6.42926075,112830.0,112820.0,1e-08]
[1760520687052,6.60751857,112830.0,112820.0,1e-08]
[1760520687317,6.60851857,112830.0,112820.0,1e-08]
[1760520687421,6.60751857,112830.0,112820.0,1e-08]
[1760520687622,6.62142301,112830.0,112820.0,1e-08]
[1760520687865,6.62242301,112830.0,112820.0,1e-08]
[1760520688245,6.71588301,112830.0,112820.0,1e-08]
[1760520688443,0.17732068,112790.0,112780.0,0.28698108]
[1760520688672,5.89821857,112790.0,112780.0,0.28698108]
[1760520688867,5.73821857,112790.0,112780.0,0.28698108]
[1760520689079,6.11172098,112790.0,112780.0,0.28698108]
[1760520689283,6.15470987,112790.0,112780.0,0.28698108]
[1760520689444,6.17372283,112790.0,112780.0,0.28698108]
[1760520691106,6.26340491,112790.0,112780.0,0.28698108]
[1760520691277,6.14523735,112790.0,112780.0,0.28698108]
[1760520691689,6.16900386,112790.0,112780.0,0.28698108]
[1760520694140,6.16900386,112790.0,112780.0,1e-08]
[1760520694290,6.19748934,112790.0,112780.0,1e-08]
[1760520695273,6.16900386,112790.0,112780.0,1e-08]
[1760520695485,6.25868594,112790.0,112780.0,1e-08]
[1760520695687,6.26068594,112790.0,112780.0,1e-08]
[1760520695926,5.51368112,112790.0,112780.0,1e-08]
[1760520696123,6.26068594,112790.0,112780.0,1e-08]
[1760520696323,6.26860066,112790.0,112780.0,1e-08]
[1760520696751,6.67907998,112790.0,112780.0,1e-08]
[1760520697438,6.7268376,112790.0,112780.0,1e-08]
[1760520697643,6.35333519,112790.0,112780.0,1e-08]
[1760520697840,6.30557757,112790.0,112780.0,1e-08]
[1760520698243,6.35333519,112790.0,112780.0,1e-08]
[1760520698477,6.69515637,112790.0,112780.0,1e-08]
[1760520699101,6.65817946,112790.0,112780.0,1e-08]
[1760520699309,6.28467705,112790.0,112780.0,1e-08]
[1760520699721,6.28367705,112790.0,112780.0,1e-08]
[1760520699932,6.65717946,112790.0,112780.0,1e-08]
[1760520700360,6.65577534,112790.0,112780.0,1e-08]
[1760520700573,6.08328268,112760.0,112750.0,1e-08]
[1760520700814,6.21577135,112760.0,112750.0,1e-08]
[1760520701022,6.24425978,112760.0,112750.0,1e-08]
[1760520701234,5.53187488,112760.0,112750.0,1e-08]
[1760520701460,6.6686904,112760.0,112750.0,1e-08]
[1760520701673,6.26669956,112760.0,112750.0,1e-08]
[1760520702089,6.62389368,112760.0,112750.0,1e-08]
[1760520702296,0.17738359,112750.0,112740.0,1e-08]
[1760520702517,6.58656005,112750.0,112740.0,1e-08]
[1760520702739,6.2320706,112750.0,112740.0,1e-08]
[1760520702950,5.48506578,112750.0,112740.0,1e-08]
[1760520703156,6.2320706,112750.0,112740.0,1e-08]
[1760520703575,6.2330706,112750.0,112740.0,1e-08]
[1760520703779,5.48606578,112750.0,112740.0,1e-08]
[1760520704148,6.2330706,112750.0,112740.0,1e-08]
[1760520704357,6.14338852,112750.0,112740.0,1e-08]
[1760520704766,6.11960925,112750.0,112740.0,1e-08]
[1760520705354,6.14338852,112750.0,112740.0,1e-08]
[1760520707172,6.14336923,112750.0,112740.0,1e-08]
[1760520707339,6.23305131,112750.0,112740.0,1e-08]
[1760520710835,6.21403113,112750.0,112740.0,1e-08]
[1760520711036,6.26606012,112750.0,112740.0,1e-08]
[1760520712012,6.23662054,112750.0,112740.0,1e-08]
[1760520712260,6.26609523,112750.0,112740.0,1e-08]
[1760520712453,6.26060611,112750.0,112740.0,1e-08]
[1760520712933,6.2900808,112750.0,112740.0,1e-08]
[1760520713148,6.39912503,112750.0,112740.0,1e-08]
[1760520713370,6.30566503,112750.0,112730.0,8e-05]
[1760520713601,6.53785059,112740.0,112730.0,8e-05]
[1760520713817,6.66284196,112740.0,112730.0,8e-05]
[1760520714039,6.63336727,112740.0,112730.0,8e-05]
[1760520714250,6.66005978,112740.0,112730.0,8e-05]
[1760520714686,6.68953447,112740.0,112730.0,8e-05]
[1760520715551,6.64192255,112740.0,112730.0,8e-05]
[1760520716412,0.51741506,112730.0,112710.0,1e-08]
[1760520716662,7.63296059,112720.0,112710.0,1e-08]
[1760520716876,7.66833642,112720.0,112710.0,1e-08]
[1760520717090,7.69781111,112720.0,112710.0,1e-08]
[1760520717375,7.69785222,112720.0,112710.0,1e-08]
[1760520717795,7.69785106,112720.0,112710.0,1e-08]
[1760520718007,7.78853312,112720.0,112710.0,1e-08]
[1760520718867,7.78953312,112720.0,112710.0,1e-08]
[1760520719531,7.78853312,112720.0,112710.0,1e-08]
[1760520719752,5.33637228,112700.0,112690.0,0.20793135]
[1760520719958,6.52804342,112700.0,112690.0,0.20793135]
[1760520720170,6.64720723,112700.0,112690.0,0.20793135]
[1760520720591,0.17749378,112680.0,112670.0,0.21321892]
[1760520720789,6.63719004,112680.0,112670.0,0.21321892]
[1760520720990,6.121456,112680.0,112670.0,0.21321892]
[1760520721417,6.121456,112680.0,112670.0,0.20821892]
[1760520721783,6.121405,112680.0,112670.0,0.20821892]
[1760520721990,5.48994002,112680.0,112670.0,0.20821892]
[1760520722403,5.37176856,112680.0,112670.0,0.20821892]
[1760520722568,6.1213941,112680.0,112670.0,0.20821892]
[1760520723385,5.37175766,112680.0,112670.0,0.20821892]
[1760520723588,6.1213941,112680.0,112670.0,0.20821892]
[1760520723824,0.41205075,112680.0,112670.0,0.20821892]
[1760520724030,0.0163316,112680.0,112670.0,0.38572846]
[1760520724262,0.51907328,112700.0,112680.0,0.17748026]
[1760520724263,4.81891,112690.0,112680.0,0.17748026]
[1760520724466,4.81891,112690.0,112680.0,0.17648026]
[1760520724467,0.39114871,112690.0,112680.0,0.17648026]
[1760520724602,0.01633049,112690.0,112680.0,0.17648026]
[1760520724805,0.37481822,112690.0,112680.0,0.17648026]
[1760520725027,0.73114871,112690.0,112680.0,0.17648026]
[1760520725230,0.01633049,112690.0,112680.0,0.17648026]
[1760520725433,0.17747803,112690.0,112680.0,0.17648026]
[1760520725637,0.53380852,112690.0,112670.0,0.39460393]
[1760520725840,0.53380852,112690.0,112680.0,0.00345316]
[1760520726040,0.53380852,112690.0,112680.0,0.18094694]
[1760520727090,5.9042381,112690.0,112680.0,0.00345316]
[1760520727501,5.99392018,112690.0,112680.0,0.00345316]
[1760520728118,5.9042381,112690.0,112680.0,0.00316707]
[1760520728509,5.37179771,112690.0,112680.0,0.00316707]
[1760520728726,1.0853281,112690.0,112680.0,0.00316707]
[1760520728925,5.37179771,112690.0,112680.0,0.00316707]
[1760520729611,5.9042381,112690.0,112680.0,0.00316707]
[1760520729817,6.1542381,112690.0,112680.0,0.00316707]
[1760520730588,6.1780797,112690.0,112680.0,0.00316707]
[1760520731248,6.2098804,112690.0,112680.0,0.00316707]
[1760520731672,6.23373985,112690.0,112680.0,0.00316707]
[1760520731880,5.70129946,112690.0,112680.0,0.00316707]
[1760520732090,6.23373985,112690.0,112680.0,0.00316707]
[1760520733860,6.20193915,112690.0,112680.0,0.00316707]
[1760520734068,6.29162123,112690.0,112680.0,0.00316707]
[1760520734492,5.75918084,112690.0,112680.0,0.00316707]
[1760520734718,6.31858277,112690.0,112680.0,0.00316707]
[1760520734948,6.27529074,112690.0,112680.0,0.00316707]
[1760520735154,6.29164452,112690.0,112680.0,0.00316707]
[1760520736032,6.31860606,112690.0,112680.0,0.00316707]
[1760520736470,6.27090501,112690.0,112680.0,0.00316707]
[1760520737109,6.27090501,112690.0,112670.0,0.20821892]
[1760520737110,5.34031755,112680.0,112670.0,0.20821892]
[1760520737320,6.04562924,112680.0,112670.0,0.20821892]
[1760520737544,5.95594716,112680.0,112670.0,0.20821892]
[1760520737971,0.08318922,112680.0,112670.0,0.91816885]
[1760520738190,0.34004729,112690.0,112680.0,0.21367606]
[1760520738191,0.27770544,112690.0,112680.0,0.21367606]
[1760520738409,0.252,112690.0,112680.0,0.21367606]
[1760520738614,0.251,112690.0,112680.0,0.32587606]
[1760520738832,0.25,112690.0,112680.0,0.32587606]
[1760520739248,0.25,112690.0,112680.0,0.28969378]
[1760520743888,0.25,112690.0,112680.0,0.17749378]
[1760520745116,0.42748004,112690.0,112670.0,0.20879465]
[1760520745323,0.34,112680.0,112670.0,0.38630253]
[1760520745475,0.51749378,112680.0,112670.0,0.20879465]
[1760520746110,0.53661267,112680.0,112670.0,0.20879465]
[1760520746313,1.06905306,112680.0,112670.0,0.20879465]
[1760520746838,0.53661267,112680.0,112670.0,0.20879465]
[1760520747414,5.88796306,112680.0,112670.0,0.20879465]
[1760520747818,5.88846306,112680.0,112670.0,0.20879465]
[1760520748933,5.35602267,112680.0,112670.0,0.20879465]
[1760520749120,5.88846306,112680.0,112670.0,0.20879465]